fUSD/lending_fUSD_20250811
["ID","MTS","AMOUNT","RATE_DAILY","PERIOD"]
[378638899,1754935847026,-633.38,0.00016438,2]
[378638900,1754935847034,-582.3,0.00016438,2]
[378638901,1754935847043,-400.0,0.00016438,2]
[378638902,1754935847053,-485.43,0.00016438,2]
[378638903,1754935847062,-853.54,0.00016438,2]
[378638904,1754935847071,-503.68163728,0.00016438,2]
[378638905,1754935847083,-400.0,0.00016438,2]
[378638906,1754935847092,-400.0,0.00016438,2]
[378638907,1754935847101,-400.0,0.00016438,2]
[378638908,1754935847113,-400.0,0.00016438,2]
[378638909,1754935847122,-400.0,0.00016438,2]
[378638910,1754935847131,-400.0,0.00016438,2]
[378638911,1754935847140,-574.83,0.00016438,2]
[378638912,1754935847150,-400.0,0.00016438,2]
[378638913,1754935847160,-400.0,0.00016438,2]
[378638914,1754935847170,-400.0,0.00016438,2]
[378638915,1754935847179,-3864.47,0.00016438,2]
[378638916,1754935847189,-10997.96,0.00016438,2]
[378638917,1754935847199,-400.0,0.00016438,2]
[378638918,1754935847208,-400.0,0.00016438,2]
[378638919,1754935847217,-400.0,0.00016438,2]
[378638920,1754935847227,-334.46495961,0.00016438,2]
[378638921,1754935847236,-400.0,0.00016438,2]
[378638922,1754935847245,-770.0,0.00016438,2]
[378638923,1754935847254,-460.0,0.00016438,2]
[378638924,1754935847263,-1284.94,0.00016438,2]
[378638925,1754935847273,-400.0,0.00016438,2]
[378638926,1754935847282,-1479.64,0.00016438,2]
[378638927,1754935847292,-500.0,0.00016438,2]
[378638928,1754935847301,-830.74,0.00016438,2]
[378638929,1754935847311,-400.0,0.00016438,2]
[378638930,1754935847320,-400.0,0.00016438,2]
[378638931,1754935847331,-400.0,0.00016438,2]
[378638932,1754935847340,-622.61,0.00016438,2]
[378638933,1754935847350,-789.16,0.00016438,2]
[378638934,1754935847359,-400.0,0.00016438,2]
[378638935,1754935847369,-400.0,0.00016438,2]
[378638936,1754935847378,-772.81,0.00016438,2]
[378638937,1754935847388,-1284.02,0.00016438,2]
[378638938,1754935847397,-400.0,0.00016438,2]
[378638939,1754935847408,-400.0,0.00016438,2]
[378638940,1754935847418,-400.0,0.00016438,2]
[378638941,1754935847427,-400.0,0.00016438,2]
[378638942,1754935847437,-767.44,0.00016438,2]
[378638943,1754935847448,-578.47,0.00016438,2]
[378638944,1754935847458,-1533.08,0.00016438,2]
[378638945,1754935847468,-591.76,0.00016438,2]
[378638946,1754935847477,-692.25,0.00016438,2]
[378638947,1754935847487,-400.0,0.00016438,2]
[378638948,1754935847500,-672.99,0.00016438,2]
[378638949,1754935847511,-400.0,0.00016438,2]
[378638950,1754935847520,-400.0,0.00016438,2]
[378638951,1754935847530,-400.0,0.00016438,2]
[378638952,1754935847539,-1604.15,0.00016438,2]
[378638953,1754935847549,-400.0,0.00016438,2]
[378638954,1754935847558,-1024.14,0.00016438,2]
[378638955,1754935847567,-543.63,0.00016438,2]
[378638956,1754935847578,-2160.12,0.00016438,2]
[378638957,1754935847587,-400.0,0.00016438,2]
[378638958,1754935847596,-400.0,0.00016438,2]
[378638959,1754935847607,-400.0,0.00016438,2]
[378638960,1754935847618,-400.0,0.00016438,2]
[378638961,1754935847634,-400.0,0.00016438,2]
[378638962,1754935847643,-432.61,0.00016438,2]
[378638963,1754935847653,-3063.2,0.00016438,2]
[378638964,1754935847662,-594.36,0.00016438,2]
[378638965,1754935847671,-465.42,0.00016438,2]
[378638966,1754935847680,-400.0,0.00016438,2]
[378638967,1754935847689,-418.69,0.00016438,2]
[378638968,1754935847698,-415.55,0.00016438,2]
[378638969,1754935847708,-400.0,0.00016438,2]
[378638970,1754935847717,-400.0,0.00016438,2]
[378638971,1754935847727,-168.84873229,0.00016438,2]
[378638972,1754935847736,-400.0,0.00016438,2]
[378638973,1754935847745,-400.0,0.00016438,2]
[378638974,1754935847754,-400.0,0.00016438,2]
[378638975,1754935847763,-400.0,0.00016438,2]
[378638976,1754935847772,-400.0,0.00016438,2]
[378638977,1754935847781,-400.0,0.00016438,2]
[378638978,1754935847790,-400.0,0.00016438,2]
[378638979,1754935847799,-498.42,0.00016438,2]
[378638980,1754935847808,-400.0,0.00016438,2]
[378638981,1754935847817,-400.0,0.00016438,2]
[378638982,1754935847826,-894.05,0.00016438,2]
[378638983,1754935847835,-1299.15,0.00016438,2]
[378638984,1754935847844,-400.0,0.00016438,2]
[378638985,1754935847853,-400.0,0.00016438,2]
[378638986,1754935847863,-400.0,0.00016438,2]
[378638987,1754935847871,-500.0,0.00016438,2]
[378638988,1754935847880,-400.0,0.00016438,2]
[378638989,1754935847889,-400.0,0.00016438,2]
[378638990,1754935847899,-2182.95,0.00016438,2]
[378638991,1754935847907,-400.0,0.00016438,2]
[378638992,1754935847917,-400.0,0.00016438,2]
[378638993,1754935847926,-400.0,0.00016438,2]
[378638994,1754935847935,-871.93,0.00016438,2]
[378638995,1754935847944,-400.0,0.00016438,2]
[378638996,1754935847953,-796.31,0.00016438,2]
[378638997,1754935847962,-400.0,0.00016438,2]
[378638998,1754935847971,-1380.57,0.00016438,2]
[378638999,1754935847980,-1311.82,0.00016438,2]
[378639000,1754935847989,-400.0,0.00016438,2]
[378639001,1754935847999,-400.0,0.00016438,2]
[378639002,1754935848009,-400.0,0.00016438,2]
[378639003,1754935848018,-1188.88,0.00016438,2]
[378639004,1754935848027,-861.43,0.00016438,2]
[378639005,1754935848037,-766.18,0.00016438,2]
[378639006,1754935848046,-400.0,0.00016438,2]
[378639007,1754935848055,-439.39,0.00016438,2]
[378639008,1754935848065,-914.26,0.00016438,2]
[378639009,1754935848074,-400.0,0.00016438,2]
[378639010,1754935848084,-400.0,0.00016438,2]
[378639011,1754935848094,-400.0,0.00016438,2]
[378639012,1754935848103,-400.0,0.00016438,2]
[378639013,1754935848115,-400.0,0.00016438,2]
[378639014,1754935848125,-400.0,0.00016438,2]
[378639015,1754935848135,-2262.38,0.00016438,2]
[378639016,1754935848145,-400.0,0.00016438,2]
[378639017,1754935848154,-951.65,0.00016438,2]
[378639018,1754935848165,-400.0,0.00016438,2]
[378639019,1754935848175,-459.56,0.00016438,2]
[378639020,1754935848185,-400.0,0.00016438,2]
[378639021,1754935848196,-923.85,0.00016438,2]
[378639022,1754935848206,-437.92,0.00016438,2]
[378639023,1754935848215,-662.69,0.00016438,2]
[378639024,1754935848225,-462.47,0.00016438,2]
[378639025,1754935848235,-400.0,0.00016438,2]
[378639026,1754935848245,-1209.23,0.00016438,2]
[378639027,1754935848255,-692.28,0.00016438,2]
[378639028,1754935848265,-400.0,0.00016438,2]
[378639029,1754935848274,-642.96,0.00016438,2]
[378639030,1754935848284,-899.05,0.00016438,2]
[378639031,1754935848293,-400.0,0.00016438,2]
[378639032,1754935848303,-400.0,0.00016438,2]
[378639033,1754935848312,-1092.56,0.00016438,2]
[378639034,1754935848322,-400.0,0.00016438,2]
[378639035,1754935848333,-400.0,0.00016438,2]
[378639036,1754935848343,-565.86,0.00016438,2]
[378639037,1754935848352,-600.0,0.00016438,2]
[378639038,1754935848362,-600.0,0.00016438,2]
[378639039,1754935848372,-600.0,0.00016438,2]
[378639040,1754935848382,-600.0,0.00016438,2]
[378639041,1754935848392,-600.0,0.00016438,2]
[378639042,1754935848402,-600.0,0.00016438,2]
[378639043,1754935848412,-440.81,0.00016447,2]
[378639044,1754935848421,-400.0,0.00016447,2]
[378639045,1754935848432,-942.37,0.00016447,2]
[378639046,1754935848442,-677.92,0.00016447,2]
[378639047,1754935848452,-1367.41,0.00016447,2]
[378639048,1754935848462,-2389.5,0.00016447,2]
[378639049,1754935848472,-2204.64,0.00016447,2]
[378639050,1754935848482,-1195.85,0.00016447,2]
[378639051,1754935848491,-1255.73,0.00016447,2]
[378639052,1754935848501,-637.4880688,0.00016473,2]
[378639053,1754935848510,-170.15466769,0.00016473,2]
[378639054,1754935848519,-1151.233,0.00016473,2]
[378639055,1754935848529,-500.0,0.00016483,2]
[378639056,1754935848538,-150.0,0.00016496,2]
[378639057,1754935848550,-150.0,0.00016496,2]
[378639058,1754935848560,-150.0,0.00016496,2]
[378639059,1754935848570,-150.0,0.00016496,2]
[378639060,1754935848579,-150.0,0.00016496,2]
[378639061,1754935848592,-150.0,0.00016496,2]
[378639062,1754935848602,-150.0,0.00016496,2]
[378639063,1754935848611,-261.73141865,0.00016496,2]
[378639064,1754935848621,-217.67230249,0.00016496,2]
[378639065,1754935848631,-242.85093078,0.00016496,2]
[378639066,1754935848641,-150.0,0.00016496,2]
[378639067,1754935848651,-150.0,0.00016496,2]
[378639068,1754935848662,-183.274281,0.00016497,2]
[378639069,1754935848671,-183.274281,0.00016497,2]
[378639070,1754935848681,-33190.95438412,0.00016514,2]
[378639071,1754935849363,-926.35,0.00016514,2]
[378639072,1754935850100,-400.0,0.00016438,2]
[378639073,1754935850111,-408.27928514,0.00016514,2]
[378639074,1754935850122,-263.52747486,0.00016538,2]
[378639075,1754935850146,-492.27402529,0.00016095,2]
[378639076,1754935850158,-18.72597471,0.00016095,2]
[378639077,1754935850167,-236.47252514,0.00016538,2]
[378639078,1754935850176,-2739.98671528,0.00016551,2]
[378639079,1754935850199,-3222.83432207,0.00016551,2]
[378639080,1754935850209,-1140.0,0.00016578,2]
[378639081,1754935850220,-500.0,0.00016593,2]
[378639082,1754935850230,-151.0,0.00016606,2]
[378639083,1754935850239,-151.0,0.00016606,2]
[378639084,1754935850249,-764.28,0.00016606,2]
[378639085,1754935850258,-865.75,0.00016606,2]
[378639086,1754935850267,-1561.29,0.00016606,2]
[378639087,1754935850277,-183.274281,0.00016607,2]
[378639088,1754935850286,-183.274281,0.00016607,2]
[378639089,1754935850296,-297.010646,0.00016607,2]
[378639090,1754935850305,-297.010646,0.00016607,2]
[378639091,1754935850314,-668.67,0.00016607,2]
[378639092,1754935850323,-2129.43,0.00016607,2]
[378639093,1754935850334,-2167.97,0.00016607,2]
[378639094,1754935850343,-1099.85,0.00016607,2]
[378639095,1754935850353,-1052.01,0.00016607,2]
[378639096,1754935850363,-1523.98,0.00016607,2]
[378639097,1754935850372,-10641.31,0.00016607,2]
[378639098,1754935850381,-6424.68238394,0.00016643,2]
[378639099,1754935850391,-500.0,0.00016648,2]
[378639100,1754935850400,-500.0,0.00016649,2]
[378639101,1754935850410,-211.73953792,0.00016684,2]
[378639102,1754935850420,-457.87080987,0.00016684,2]
[378639103,1754935850430,-842.86497659,0.00016684,2]
[378639104,1754935850440,-160.0,0.00016686,2]
[378639105,1754935850450,-168.0,0.00016695,2]
[378639106,1754935850459,-200.0,0.000167,6]
[378639107,1754935850469,-500.0,0.00016703,2]
[378639108,1754935850478,-604.42,0.0001671,2]
[378639109,1754935850488,-353.24,0.0001671,2]
[378639110,1754935850497,-150.0,0.00016711,2]
[378639111,1754935850507,-500.0,0.00016711,2]
[378639112,1754935850516,-500.0,0.00016711,2]
[378639113,1754935850525,-500.0,0.00016711,2]
[378639114,1754935850535,-500.0,0.00016711,2]
[378639115,1754935850545,-151.0,0.00016712,2]
[378639116,1754935850555,-1121.88527,0.00016712,2]
[378639117,1754935850564,-183.274281,0.00016712,2]
[378639118,1754935850573,-183.274281,0.00016712,2]
[378639119,1754935850584,-183.274281,0.00016712,2]
[378639120,1754935850593,-183.274281,0.00016712,2]
[378639121,1754935850602,-183.274281,0.00016712,2]
[378639122,1754935850611,-183.274281,0.00016712,2]
[378639123,1754935850620,-183.274281,0.00016712,2]
[378639124,1754935850629,-183.274281,0.00016712,2]
[378639125,1754935850639,-183.274281,0.00016712,2]
[378639126,1754935850648,-183.274281,0.00016712,2]
[378639127,1754935850657,-644.680376,0.00016712,2]
[378639128,1754935850666,-1057.867655,0.00016712,2]
[378639129,1754935850675,-297.010646,0.00016712,2]
[378639130,1754935850684,-297.010646,0.00016712,2]
[378639131,1754935850694,-297.010646,0.00016712,2]
[378639132,1754935850703,-297.010646,0.00016712,2]
[378639133,1754935850712,-297.010646,0.00016712,2]
[378639134,1754935850722,-297.010646,0.00016712,2]
[378639135,1754935850731,-297.010646,0.00016712,2]
[378639136,1754935850740,-297.010646,0.00016712,2]
[378639137,1754935850749,-297.010646,0.00016712,2]
[378639138,1754935850758,-297.010646,0.00016712,2]
[378639139,1754935850767,-297.010646,0.00016712,2]
[378639140,1754935850776,-297.010656,0.00016712,2]
[378639141,1754935851137,-151.0,0.00016712,2]
[378639142,1754935851147,-151.0,0.00016712,2]
[378639143,1754935851157,-151.0,0.00016712,2]
[378639144,1754935851166,-151.0,0.00016712,2]
[378639145,1754935851176,-151.0,0.00016712,2]
[378639146,1754935851185,-151.0,0.00016712,2]
[378639147,1754935851195,-400.0,0.00016712,2]
[378639148,1754935851204,-400.0,0.00016712,2]
[378639149,1754935851214,-267.87087744,0.00016712,2]
[378639150,1754935851225,-400.0,0.00016712,2]
[378639151,1754935851234,-2422.56,0.00016712,2]
[378639152,1754935851244,-400.0,0.00016712,2]
[378639153,1754935851253,-400.0,0.00016712,2]
[378639154,1754935851263,-400.0,0.00016712,2]
[378639155,1754935851272,-400.0,0.00016712,2]
[378639156,1754935851282,-1104.35,0.00016712,2]
[378639157,1754935851291,-514.84997518,0.00016712,2]
[378639158,1754935851301,-400.0,0.00016712,2]
[378639159,1754935851310,-400.0,0.00016712,2]
[378639160,1754935851320,-906.18,0.00016712,2]
[378639161,1754935851329,-400.0,0.00016712,2]
[378639162,1754935851340,-503.96,0.00016712,2]
[378639163,1754935851350,-936.97,0.00016712,2]
[378639164,1754935851359,-400.0,0.00016712,2]
[378639165,1754935851369,-400.0,0.00016712,2]
[378639166,1754935851379,-400.0,0.00016712,2]
[378639167,1754935851388,-400.0,0.00016712,2]
[378639168,1754935851398,-400.0,0.00016712,2]
[378639169,1754935851408,-400.0,0.00016712,2]
[378639170,1754935851418,-929.39,0.00016712,2]
[378639171,1754935851427,-513.83,0.00016712,2]
[378639172,1754935851436,-400.0,0.00016712,2]
[378639173,1754935851446,-400.0,0.00016712,2]
[378639174,1754935851456,-2021.37,0.00016712,2]
[378639175,1754935851466,-400.0,0.00016712,2]
[378639176,1754935851475,-400.0,0.00016712,2]
[378639177,1754935851485,-400.0,0.00016712,2]
[378639178,1754935851494,-400.0,0.00016712,2]
[378639179,1754935851504,-723.58,0.00016712,2]
[378639180,1754935851514,-400.0,0.00016712,2]
[378639181,1754935851523,-1064.36,0.00016712,2]
[378639182,1754935851532,-400.0,0.00016712,2]
[378639183,1754935851542,-400.0,0.00016712,2]
[378639184,1754935851551,-400.0,0.00016712,2]
[378639185,1754935851561,-2255.04,0.00016712,2]
[378639186,1754935851570,-829.58,0.00016712,2]
[378639187,1754935851579,-400.0,0.00016712,2]
[378639188,1754935851589,-400.0,0.00016712,2]
[378639189,1754935851598,-400.0,0.00016712,2]
[378639190,1754935851608,-400.0,0.00016712,2]
[378639191,1754935851617,-515.63832915,0.00016712,2]
[378639192,1754935851627,-400.0,0.00016712,2]
[378639193,1754935851636,-503.66,0.00016712,2]
[378639194,1754935851646,-400.0,0.00016712,2]
[378639195,1754935851655,-400.0,0.00016712,2]
[378639196,1754935851665,-764.38,0.00016712,2]
[378639197,1754935851674,-682.85,0.00016712,2]
[378639198,1754935851684,-830.97,0.00016712,2]
[378639199,1754935851693,-492.11061303,0.00016712,2]
[378639200,1754935851702,-400.0,0.00016712,2]
[378639201,1754935851711,-614.32,0.00016712,2]
[378639202,1754935851721,-400.0,0.00016712,2]
[378639203,1754935851730,-458.16,0.00016712,2]
[378639204,1754935851739,-400.0,0.00016712,2]
[378639205,1754935851748,-400.0,0.00016712,2]
[378639206,1754935851758,-417.19,0.00016712,2]
[378639207,1754935851767,-400.0,0.00016712,2]
[378639208,1754935851777,-456.93,0.00016712,2]
[378639209,1754935851786,-474.77,0.00016712,2]
[378639210,1754935851795,-400.0,0.00016712,2]
[378639211,1754935851805,-400.0,0.00016712,2]
[378639212,1754935851815,-1027.39,0.00016712,2]
[378639213,1754935851824,-400.0,0.00016712,2]
[378639214,1754935851835,-695.16,0.00016712,2]
[378639215,1754935851844,-400.0,0.00016712,2]
[378639216,1754935851854,-537.22,0.00016712,2]
[378639217,1754935851863,-448.32,0.00016712,2]
[378639218,1754935851873,-400.0,0.00016712,2]
[378639219,1754935851883,-400.0,0.00016712,2]
[378639220,1754935851892,-400.0,0.00016712,2]
[378639221,1754935851901,-400.0,0.00016712,2]
[378639222,1754935851911,-400.0,0.00016712,2]
[378639223,1754935851920,-400.0,0.00016712,2]
[378639224,1754935851930,-461.1,0.00016712,2]
[378639225,1754935851939,-400.0,0.00016712,2]
[378639226,1754935851949,-400.0,0.00016712,2]
[378639227,1754935851958,-400.0,0.00016712,2]
[378639228,1754935851968,-400.0,0.00016712,2]
[378639229,1754935851977,-453.7,0.00016712,2]
[378639230,1754935851987,-400.0,0.00016712,2]
[378639231,1754935851996,-1914.23,0.00016712,2]
[378639232,1754935852006,-400.0,0.00016712,2]
[378639233,1754935852015,-495.45,0.00016712,2]
[378639234,1754935852024,-400.0,0.00016712,2]
[378639235,1754935852033,-566.38,0.00016712,2]
[378639236,1754935852043,-400.0,0.00016712,2]
[378639237,1754935852053,-423.82,0.00016712,2]
[378639238,1754935852063,-400.0,0.00016712,2]
[378639239,1754935852073,-400.0,0.00016712,2]
[378639240,1754935852082,-1427.98,0.00016712,2]
[378639241,1754935852092,-400.0,0.00016712,2]
[378639242,1754935852101,-400.0,0.00016712,2]
[378639243,1754935852113,-447.88,0.00016712,2]
[378639244,1754935852125,-400.0,0.00016712,2]
[378639245,1754935852134,-400.0,0.00016712,2]
[378639246,1754935852144,-400.0,0.00016712,2]
[378639247,1754935852154,-400.0,0.00016712,2]
[378639248,1754935852166,-1922.72,0.00016712,2]
[378639249,1754935852175,-400.0,0.00016712,2]
[378639250,1754935852185,-400.0,0.00016712,2]
[378639251,1754935852195,-454.13,0.00016712,2]
[378639252,1754935852206,-400.0,0.00016712,2]
[378639253,1754935852215,-400.0,0.00016712,2]
[378639254,1754935852224,-400.0,0.00016712,2]
[378639255,1754935852234,-400.0,0.00016712,2]
[378639256,1754935852244,-400.0,0.00016712,2]
[378639257,1754935852254,-400.0,0.00016712,2]
[378639258,1754935852263,-400.0,0.00016712,2]
[378639259,1754935852273,-1107.68,0.00016712,2]
[378639260,1754935852282,-1241.4,0.00016712,2]
[378639261,1754935852291,-597.44,0.00016712,2]
[378639262,1754935852301,-609.92,0.00016712,2]
[378639263,1754935852310,-400.0,0.00016712,2]
[378639264,1754935852320,-525.8,0.00016712,2]
[378639265,1754935852329,-400.0,0.00016712,2]
[378639266,1754935852339,-400.0,0.00016712,2]
[378639267,1754935852349,-400.0,0.00016712,2]
[378639268,1754935852358,-469.59,0.00016712,2]
[378639269,1754935852368,-196.49516855,0.00016712,2]
[378639270,1754935852378,-400.0,0.00016712,2]
[378639271,1754935852388,-400.0,0.00016712,2]
[378639272,1754935852398,-527.15019479,0.00016712,2]
[378639273,1754935852408,-400.8,0.00016712,2]
[378639274,1754935852418,-400.0,0.00016712,2]
[378639275,1754935852427,-400.0,0.00016712,2]
[378639276,1754935852436,-400.0,0.00016712,2]
[378639277,1754935852446,-417.23,0.00016712,2]
[378639278,1754935852455,-640.06,0.00016712,2]
[378639279,1754935852465,-400.0,0.00016712,2]
[378639280,1754935852474,-400.0,0.00016712,2]
[378639281,1754935852483,-400.0,0.00016712,2]
[378639282,1754935852493,-837.26,0.00016712,2]
[378639283,1754935852503,-541.46,0.00016712,2]
[378639284,1754935852512,-636.38,0.00016712,2]
[378639285,1754935852521,-400.0,0.00016712,2]
[378639286,1754935852531,-400.0,0.00016712,2]
[378639287,1754935852540,-400.0,0.00016712,2]
[378639288,1754935852550,-400.0,0.00016712,2]
[378639289,1754935852559,-400.0,0.00016712,2]
[378639290,1754935852568,-400.0,0.00016712,2]
[378639291,1754935852578,-400.0,0.00016712,2]
[378639292,1754935852589,-400.0,0.00016712,2]
[378639293,1754935852598,-400.0,0.00016712,2]
[378639294,1754935852607,-400.0,0.00016712,2]
[378639295,1754935852616,-1210.72,0.00016712,2]
[378639296,1754935852625,-400.0,0.00016712,2]
[378639297,1754935852634,-529.43,0.00016712,2]
[378639298,1754935852644,-526.91,0.00016712,2]
[378639299,1754935852653,-705.77,0.00016712,2]
[378639300,1754935852663,-400.0,0.00016712,2]
[378639301,1754935852672,-657.77,0.00016712,2]
[378639302,1754935852682,-494.14,0.00016712,2]
[378639303,1754935852691,-400.0,0.00016712,2]
[378639304,1754935852700,-512.45,0.00016712,2]
[378639305,1754935852710,-400.0,0.00016712,2]
[378639306,1754935852719,-400.0,0.00016712,2]
[378639307,1754935852729,-400.0,0.00016712,2]
[378639308,1754935852739,-430.74,0.00016712,2]
[378639309,1754935852749,-400.0,0.00016712,2]
[378639310,1754935852758,-429.21,0.00016712,2]
[378639311,1754935852767,-400.0,0.00016712,2]
[378639312,1754935852777,-508.13,0.00016712,2]
[378639313,1754935852786,-400.0,0.00016712,2]
[378639314,1754935852796,-400.0,0.00016712,2]
[378639315,1754935852806,-400.0,0.00016712,2]
[378639316,1754935852816,-400.0,0.00016712,2]
[378639317,1754935852826,-482.7,0.00016712,2]
[378639318,1754935852835,-400.0,0.00016712,2]
[378639319,1754935852845,-421.69,0.00016712,2]
[378639320,1754935852855,-400.0,0.00016712,2]
[378639321,1754935852865,-400.0,0.00016712,2]
[378639322,1754935852874,-448.19,0.00016712,2]
[378639323,1754935852884,-400.0,0.00016712,2]
[378639324,1754935852894,-400.0,0.00016712,2]
[378639325,1754935852903,-400.0,0.00016712,2]
[378639326,1754935852913,-935.16,0.00016712,2]
[378639327,1754935852922,-400.0,0.00016712,2]
[378639328,1754935852931,-400.0,0.00016712,2]
[378639329,1754935852941,-400.0,0.00016712,2]
[378639330,1754935852951,-400.0,0.00016712,2]
[378639331,1754935852960,-400.0,0.00016712,2]
[378639332,1754935852970,-400.0,0.00016712,2]
[378639333,1754935852979,-400.0,0.00016712,2]
[378639334,1754935852989,-400.0,0.00016712,2]
[378639335,1754935852998,-400.0,0.00016712,2]
[378639336,1754935853008,-400.0,0.00016712,2]
[378639337,1754935853017,-587.69,0.00016712,2]
[378639338,1754935853026,-400.0,0.00016712,2]
[378639339,1754935853036,-400.0,0.00016712,2]
[378639340,1754935853045,-400.0,0.00016712,2]
[378639341,1754935853055,-509.56,0.00016712,2]
[378639342,1754935853065,-400.0,0.00016712,2]
[378639343,1754935853074,-1203.6,0.00016712,2]
[378639344,1754935853083,-429.72,0.00016712,2]
[378639345,1754935853093,-400.0,0.00016712,2]
[378639346,1754935853102,-400.0,0.00016712,2]
[378639347,1754935853115,-400.0,0.00016712,2]
[378639348,1754935853125,-400.0,0.00016712,2]
[378639349,1754935853134,-661.75,0.00016712,2]
[378639350,1754935853144,-400.0,0.00016712,2]
[378639351,1754935853154,-3512.13,0.00016712,2]
[378639352,1754935853163,-400.0,0.00016712,2]
[378639353,1754935853172,-400.0,0.00016712,2]
[378639354,1754935853181,-400.0,0.00016712,2]
[378639355,1754935853192,-514.97,0.00016712,2]
[378639356,1754935853202,-400.0,0.00016712,2]
[378639357,1754935853211,-442.3,0.00016712,2]
[378639358,1754935853221,-400.0,0.00016712,2]
[378639359,1754935853230,-400.0,0.00016712,2]
[378639360,1754935853239,-400.0,0.00016712,2]
[378639361,1754935853248,-224.2448507,0.00016712,2]
[378639362,1754935853258,-400.0,0.00016712,2]
[378639363,1754935853267,-1000.0,0.00016712,2]
[378639364,1754935853276,-400.0,0.00016712,2]
[378639365,1754935853286,-521.68,0.00016712,2]
[378639366,1754935853295,-400.0,0.00016712,2]
[378639367,1754935853305,-400.0,0.00016712,2]
[378639368,1754935853314,-400.0,0.00016712,2]
[378639369,1754935853323,-1724.7,0.00016712,2]
[378639370,1754935853333,-400.0,0.00016712,2]
[378639371,1754935853342,-400.0,0.00016712,2]
[378639372,1754935853352,-400.0,0.00016712,2]
[378639373,1754935853362,-452.03,0.00016712,2]
[378639374,1754935853371,-400.0,0.00016712,2]
[378639375,1754935853380,-400.0,0.00016712,2]
[378639376,1754935853390,-400.0,0.00016712,2]
[378639377,1754935853400,-400.0,0.00016712,2]
[378639378,1754935853410,-400.0,0.00016712,2]
[378639379,1754935853420,-998.21,0.00016712,2]
[378639380,1754935853429,-400.0,0.00016712,2]
[378639381,1754935853516,-633.41,0.00016712,2]
[378639382,1754935853526,-400.0,0.00016712,2]
[378639383,1754935853534,-400.0,0.00016712,2]
[378639384,1754935853544,-400.0,0.00016712,2]
[378639385,1754935853553,-400.0,0.00016712,2]
[378639386,1754935853562,-400.0,0.00016712,2]
[378639387,1754935853572,-1011.28,0.00016712,2]
[378639388,1754935853582,-427.57,0.00016712,2]
[378639389,1754935853591,-400.0,0.00016712,2]
[378639390,1754935853601,-2451.1,0.00016712,2]
[378639391,1754935853610,-400.0,0.00016712,2]
[378639392,1754935853619,-632.01,0.00016712,2]
[378639393,1754935853629,-529.95,0.00016712,2]
[378639394,1754935853639,-727.61,0.00016712,2]
[378639395,1754935853648,-400.0,0.00016712,2]
[378639396,1754935853658,-423.38,0.00016712,2]
[378639397,1754935853667,-400.0,0.00016712,2]
[378639398,1754935853677,-579.92,0.00016712,2]